Cogmind - Beta 9.6 @@@ ROGUE MODE // 2020.07.21 @ 15:39:29 // Winter2019/RPGLIKE Player: Hermelin Result: Destroyed by Tracker with Linked Autogun Performance ------------- Evolutions (7) 3500 Regions Visited (21) 4200 Robots Destroyed (506) 2530 Value Destroyed (30947) 30947 Prototype IDs (132) 2640 Alien Tech Used (4) 800 Bonus (24357) 24357 TOTAL SCORE: 68974 Bonus ------- High Alert Combat Kills 8666 Follower Combat Kills 2003 Entered Garrisons 1200 Used RIF Installer 3000 Aligned with FarCom 300 Found Hidden Lab 3000 Used Core Reset Matrix 3000 Hacked Protovariant 500 Scanned by Researcher 500 Pursued by Intercept 1000 Acquired SGEMP 2000 Friendly Fire -812 Cogmind --------- Core Integrity 0/1500 Matter 277/300 Energy 746/1290 System Corruption 17% Temperature Cool (0) Movement Flying (109) Ox1 Location -3/Testing Parts ------- > --- POWER (3) -------- Micro Fission Core Micro Fission Core > --- PROPULSION (6) --- Experimental Cesium-ion Thruster Experimental Cesium-ion Thruster Experimental Cesium-ion Thruster Experimental Cesium-ion Thruster Experimental Q-thruster Experimental Q-thruster > --- UTILITY (11) ----- Experimental Energy Well Enhanced Optical Array Experimental Signal Interpreter Experimental Melee Analysis Suite Advanced Reaction Control System Medium Regenerative Plating Advanced Shield Generator Experimental Hacking Suite Deep Network Scanner Experimental System Shield Improved System Backup Module > --- WEAPON (5) ------- Vibroblade Molecular Scythe Centrium Greatsword Nanosword > --- INVENTORY (6) ---- Nanoactuators Advanced Force Booster Vibroblade SGEMP Prototype Peak State ------------ > --- POWER ------------ Micro Fission Core Micro Fission Core Micro Fission Core > --- PROPULSION ------- Experimental Cesium-ion Thruster Experimental Cesium-ion Thruster Experimental Cesium-ion Thruster Experimental Cesium-ion Thruster Experimental Q-thruster Experimental Q-thruster > --- UTILITY ---------- Experimental Energy Well Enhanced Optical Array Experimental Signal Interpreter Experimental Melee Analysis Suite Nanoactuators Advanced Reaction Control System Advanced Powered Armor Advanced Shield Generator Experimental Hacking Suite Deep Network Scanner Experimental System Shield > --- WEAPON ----------- Containment Facilitator Centrium Greatsword Nanosword > --- INVENTORY -------- Advanced Force Booster Medium Regenerative Plating Improved System Backup Module Vibroblade SGEMP Prototype [Rating: 199] Favorites ----------- Power Micro Fission Core Engine Light Deuterium Engine Power Core Micro Fission Core Reactor Heavy Antimatter Reactor Propulsion Improved VTOL Module Wheel Wheel Hover Unit Hover Unit Flight Unit Improved VTOL Module Utility Advanced System Shield Device Advanced Shield Generator Storage Advanced Energy Well Processor Experimental Signal Interpreter Hackware Advanced System Shield Protection Improved Powered Armor Weapon Vibroblade Energy Gun Electrolaser Energy Cannon Compact Ion Cannon Ballistic Gun Hypervelocity Coil Gun Launcher Grenade Launcher Special Weapon Plasma Cutter Impact Weapon Great Maul Slashing Weapon Vibroblade Piercing Weapon Force Lance Special Melee Weapon Advanced Datajack Build | -11 -10 -10 -10 -9 -8 -8 -7 -7 -7 -7 -6 -6 -5 -5 -4 -4 -4 -4 -4 -3 -3 ------- Run | Scr Mat Min Exi Min Mat Gar Fac Gar Fac Gar Fac Gar Fac Gar Fac Gar Fac Arm Lab Res Tes Slots Evolved 21 | 3 2 1 . 1 4 2 . 2 . . . 1 1 . 1 1 1 1 . . . Power 2 | . . . . . . 1 . . . . . . . . . . . 1 . . . Propulsion 5 | 1 . . . 1 1 . . 1 . . . . 1 . . . . . . . . Utility 10 | 1 2 1 . . 2 1 . . . . . 1 . . 1 1 . . . . . Weapon 4 | 1 . . . . 1 . . 1 . . . . . . . . 1 . . . . Parts Attached 301 | 10 20 5 3 2 23 14 12 7 11 . 18 12 20 4 20 2 18 16 22 27 35 Power 29 | 2 2 1 . . 2 4 5 1 . . 2 1 2 . 1 . 2 1 2 1 . Engine 7 | 2 2 . . . 1 . 2 . . . . . . . . . . . . . . Core 20 | . . 1 . . 1 4 3 1 . . 2 1 2 . 1 . 1 1 1 1 . Reactor 2 | . . . . . . . . . . . . . . . . . 1 . 1 . . Propulsion 47 | 4 6 . 1 2 4 . . 2 1 . 2 1 3 . 1 1 5 3 . 2 9 Treads . | . . . . . . . . . . . . . . . . . . . . . . Leg . | . . . . . . . . . . . . . . . . . . . . . . Wheel 4 | 4 . . . . . . . . . . . . . . . . . . . . . Hover 3 | . 3 . . . . . . . . . . . . . . . . . . . . Flight 40 | . 3 . 1 2 4 . . 2 1 . 2 1 3 . 1 1 5 3 . 2 9 Utility 145 | 2 7 1 1 . 9 5 6 2 5 . 10 5 9 3 14 1 10 3 16 22 14 Device 76 | 1 1 . . . 1 2 2 1 1 . 6 2 6 2 10 . 8 2 10 11 10 Storage 6 | . . . . . . . . . . . . 1 . 1 2 . . . 1 1 . Processor 11 | 1 2 . 1 . 3 1 . . . . 1 . . . . . 1 . . 1 . Hackware 18 | . 2 . . . . . 1 . 2 . 3 . 2 . . 1 . 1 2 4 . Protection 34 | . 2 1 . . 5 2 3 1 2 . . 2 1 . 2 . 1 . 3 5 4 Artifact . | . . . . . . . . . . . . . . . . . . . . . . Weapon 80 | 2 5 3 1 . 8 5 1 2 5 . 4 5 6 1 4 . 1 9 4 2 12 Energy Gun 33 | 2 1 1 1 . 4 5 1 2 5 . 1 4 . 1 3 . . 1 1 . . Energy Cannon 2 | . . . . . . . . . . . . . 2 . . . . . . . . Ballistic Gun 8 | . 2 1 . . . . . . . . 2 1 1 . . . . 1 . . . Ballistic Cannon . | . . . . . . . . . . . . . . . . . . . . . . Launcher 2 | . . 1 . . . . . . . . . . . . . . . . . . 1 Special Weapon 3 | . . . . . 2 . . . . . . . . . . . . . 1 . . Impact Weapon 3 | . . . . . 2 . . . . . . . . . . . . . . . 1 Slashing Weapon 26 | . 2 . . . . . . . . . 1 . 3 . 1 . . 7 2 1 9 Piercing Weapon 2 | . . . . . . . . . . . . . . . . . . . . 1 1 Special Melee Weapon 1 | . . . . . . . . . . . . . . . . . 1 . . . . Unidentified Prototypes 44 | . . . . . 2 . 1 1 1 . 3 . 4 . 4 . 4 1 8 4 11 Parts Lost 7 | . . . . . . 2 . . . . . 2 . . . . . . . 2 1 Power 1 | . . . . . . . . . . . . . . . . . . . . . 1 Propulsion . | . . . . . . . . . . . . . . . . . . . . . . Utility 5 | . . . . . . 2 . . . . . 1 . . . . . . . 2 . Weapon 1 | . . . . . . . . . . . . 1 . . . . . . . . . Highest Loss Streak 2 | . . . . . . 1 . . . . . 1 . . . . . . . 2 1 Average Slot Usage (%) 97 | . 95 98 91 90 95 97 99 100 97 94 93 94 97 100 99 99 99 100 99 99 95 Engine 1 | . 12 5 . . . . 1 5 5 5 4 . . . . . . . . . . Core 8 | . . 5 10 9 6 9 9 5 5 5 5 10 9 9 9 9 7 10 12 12 12 Flight 24 | . 13 20 20 26 22 24 23 26 26 26 26 25 28 28 27 26 25 24 24 24 23 Device 8 | . 12 . . . 4 5 5 10 10 10 9 11 9 13 11 13 8 8 9 9 9 Storage 1 | . . . . . . . . . . . . . 3 . 3 4 4 4 4 4 4 Processor 8 | . 16 10 18 18 16 13 13 5 5 5 5 5 4 4 4 4 7 8 8 8 12 Hackware 16 | . 1 20 20 18 14 11 13 15 16 21 21 20 19 19 18 18 20 20 18 17 13 Protection 6 | . 3 16 12 9 11 11 11 10 8 5 5 4 3 4 3 4 3 4 3 3 3 Energy Gun 7 | . 8 4 9 9 7 10 11 13 15 15 9 5 9 9 8 9 8 2 . . . Ballistic Gun 1 | . 11 10 2 . . . . . . . 4 5 2 . . . . . . . . Impact Weapon 1 | . . . . . 5 5 5 5 3 . . . . . . . . . . . . Slashing Weapon 4 | . 5 2 . . . . . . . . . 4 1 4 4 4 4 14 19 20 15 Naked Turns . | . . . . . . . . . . . . . . . . . . . . . . Heaviest Build 61 | 10 12 15 18 18 32 34 35 38 39 39 46 47 52 54 55 53 54 58 58 61 56 Greatest Support 63 | 37 17 13 13 22 34 34 34 39 39 39 47 47 56 56 56 60 58 60 58 58 63 Greatest Overweight (x) 3 | 1 1 1 1 1 1 2 1 2 . . . . . . . . . 3 . 3 2 Average Overweight (x) . | . . . . . . . . . . . . . . . . . . . . . . Largest Inventory Capacity 6 | 2 2 2 2 2 3 3 4 4 4 4 4 4 4 4 4 4 4 4 5 5 6 Average Capacity 3 | 1 2 2 2 2 2 3 3 4 4 4 4 4 4 4 4 4 4 4 4 5 5 Most Carried 6 | 2 2 2 2 2 3 3 4 4 4 4 4 4 4 4 4 4 4 4 5 5 6 Average Carried 3 | 1 1 2 1 1 2 2 3 3 3 4 3 3 3 4 3 3 3 3 4 4 5 Final Capacity 6 | 2 2 2 2 2 3 3 4 4 4 4 4 4 4 4 4 4 4 4 5 5 6 Final Carried 5 | 2 2 2 2 2 3 3 4 4 4 4 4 4 4 4 4 4 4 4 5 5 5 Class Distribution -------------------- 53% | Wizard-Sprinter 14% | Hacker-Sprinter 13% | Scavenger-Mutant 5% | Wizard-Scout Dominant Class ---------------- Scavenger-Mutant | -10/Materials Scavenger-Mutant | -10/Mines Scavenger-Mutant | -10/Exiles Scavenger-Mutant | -9/Mines Scavenger-Mutant | -8/Materials Hacker-Sprinter | -8/Garrison Commander-Scout | -7/Factory Hacker-Sprinter | -7/Garrison Hacker-Sprinter | -7/Factory Wizard-Sprinter | -7/Garrison Wizard-Sprinter | -6/Factory Wizard-Sprinter | -6/Garrison Wizard-Sprinter | -5/Factory Wizard-Sprinter | -5/Garrison Wizard-Sprinter | -4/Factory Wizard-Sprinter | -4/Garrison Wizard-Sprinter | -4/Factory Wizard-Sprinter | -4/Armory Wizard-Sprinter | -4/Lab Wizard-Sprinter | -3/Research Wizard-Scout | -3/Testing Resources | -11 -10 -10 -10 -9 -8 -8 -7 -7 -7 -7 -6 -6 -5 -5 -4 -4 -4 -4 -4 -3 -3 ----------- Run | Scr Mat Min Exi Min Mat Gar Fac Gar Fac Gar Fac Gar Fac Gar Fac Gar Fac Arm Lab Res Tes Matter Collected 4680 | 300 487 154 . 50 230 140 90 100 90 20 415 665 349 40 200 10 161 189 126 407 457 Remotely . | . . . . . . . . . . . . . . . . . . . . . . Salvage Created 24700 | 84 644 164 . 346 1352 905 305 1386 295 1777 748 1889 848 1710 1935 1339 959 2882 126 2520 2486 Parts 1138 | 12 43 5 . 29 74 39 23 44 26 81 67 79 37 58 70 54 61 124 6 98 108 Haulers Intercepted 22 | . 2 . . . 5 . 3 . 1 . 2 . . . 4 . 3 . . 1 1 Recyclers Shooed 4 | . . . . . . . . . . . 3 . . . 1 . . . . . . Parts Field Recycled . | . . . . . . . . . . . . . . . . . . . . . . Retrieved Matter . | . . . . . . . . . . . . . . . . . . . . . . Parts Self-Destructed . | . . . . . . . . . . . . . . . . . . . . . . Prevented . | . . . . . . . . . . . . . . . . . . . . . . Kills | -11 -10 -10 -10 -9 -8 -8 -7 -7 -7 -7 -6 -6 -5 -5 -4 -4 -4 -4 -4 -3 -3 ------- Run | Scr Mat Min Exi Min Mat Gar Fac Gar Fac Gar Fac Gar Fac Gar Fac Gar Fac Arm Lab Res Tes Combat Hostiles Destroyed 423 | . 17 4 . 19 26 21 3 29 9 37 12 34 16 27 21 19 15 45 1 33 35 Melee 132 | . . . . . 1 . . . . . . 1 . . . 1 15 45 1 33 35 Guns 242 | . 17 2 . 19 19 18 2 29 9 33 10 33 10 17 12 12 . . . . . Cannons 29 | . . . . . 3 1 . . . . . . 5 10 7 3 . . . . . AOE 10 | . . 2 . . 3 . . . . 3 2 . . . . . . . . . . Classes Destroyed 22 | 1 6 4 . 1 1 1 . 1 1 . . 1 1 1 . . . . . . 3 Worker 3 | . . . . . . . . . . . . . 1 . 1 . . . . . 1 Builder 3 | . 1 1 . . . . . . . . . . . . 1 . . . . . . Tunneler 4 | 4 . . . . . . . . . . . . . . . . . . . . . Hauler 22 | . 2 . . . 5 . 3 . 1 . 2 . . . 4 . 3 . . 1 1 Recycler 1 | . . 1 . . . . . . . . . . . . . . . . . . . Operator 12 | . 2 . . . 1 . . . . . 3 . 1 . . . . 2 . 1 2 Watcher 31 | . 2 . . . 2 . . . 1 1 5 . 1 . 4 . 3 4 . 5 3 Swarmer 74 | . 6 . . 10 6 1 . 3 2 7 . 13 5 7 . . 3 1 . 8 2 Saboteur 4 | . . . . . . . . . . . . 1 . . . . . 3 . . . Grunt 144 | . 11 . . 7 9 14 . 17 3 23 3 13 5 11 7 5 2 6 . 2 6 Brawler 5 | . . . . . . . . 1 . . . 1 . . 2 . . . . . 1 Duelist 13 | . . . . 1 1 . . 1 . 1 . . 2 . 1 4 . 2 . . . Researcher 4 | . . . . . . . . . . . . . . . . . . . . . 4 Sentry 77 | . . 2 . . 9 2 3 3 3 4 7 6 2 7 5 2 3 10 . 9 . Demolisher 4 | . . 1 . . . . . . . . . . . . . . . 3 . . . Specialist 6 | . . . . . . 1 1 2 . . . . . . . . . 2 . . . Hunter 34 | . . . . . 1 3 . 2 . 2 1 . . 1 2 5 2 8 . 2 5 Programmer 28 | . . . . . . . . . 1 . 1 . 2 . 4 2 4 10 . 1 3 Behemoth 5 | . . . . . . . . . . . . . . 1 . 1 1 . . 2 . Tracker 14 | . . . . . . . . . . . . . . . . . . . . 5 9 Combat Programmer 11 | . . . . . . . . . . . . . . . . . . . . 5 6 Investigator 1 | . . . . . . . . . . . . . . . . . . . . . 1 Striker 2 | . . . . . . . . . . . . . . . . . . . . . 2 Alpha 7 1 | . . . . . . . . . . . . . . . . . . . . . 1 Assembled 2 | . . 1 . 1 . . . . . . . . . . . . . . . . . Best Kill Streak 16 | 4 5 3 . 6 7 3 1 6 2 16 4 6 8 7 5 4 5 8 1 12 6 Combat Bots Only 16 | . 5 3 . 6 5 3 1 6 2 16 3 6 4 7 5 4 5 8 1 11 6 Max Kills in Single Turn 3 | 1 1 1 . 1 3 1 1 1 1 3 1 2 2 2 2 1 1 2 1 2 1 Gunslinging 1 | . . . . . . . . . . 1 . 1 . . . . . . . . . Exploded 3 | . . 1 . . 3 . . . . 2 1 . . . . . . . . . . Melee 2 | . . . . . 1 . . . . . . 1 . . . 1 1 2 1 2 1 Uniques/NPCs Destroyed 1 | . . . . . . . . . . . . . . . . . . . 1 . . A5 (-4/Lab) Combat | -11 -10 -10 -10 -9 -8 -8 -7 -7 -7 -7 -6 -6 -5 -5 -4 -4 -4 -4 -4 -3 -3 -------- Run | Scr Mat Min Exi Min Mat Gar Fac Gar Fac Gar Fac Gar Fac Gar Fac Gar Fac Arm Lab Res Tes Damage Taken 27149 | . 717 501 . 308 966 1811 441 949 374 1371 1066 1861 1014 845 1520 1479 841 2619 115 3321 5030 Core 17759 | . 579 358 . 202 639 1209 300 629 266 916 660 1197 613 551 975 999 581 1718 74 2043 3250 Absorbed by Shields 7102 | . . . . . . . 58 381 149 410 404 819 128 447 529 537 311 861 64 1190 814 Redirected to Core 14992 | . 399 314 . 181 572 1101 254 506 191 744 601 1037 492 459 861 783 478 1368 56 1729 2866 Core Remaining (%) 92 | 100 . . . 100 . 94 . . . 100 . 56 . 100 . . . . 100 . . Volleys Fired 947 | 6 103 24 . . 46 125 28 78 34 99 56 120 43 61 65 58 . . . . 1 Largest 4 | 2 2 2 . . 2 2 2 3 3 3 3 3 4 3 3 3 . . . . 1 Hottest 288 | 100 100 60 . . 83 126 126 191 201 187 187 223 288 265 265 208 . . . . . Shots Fired 2320 | 12 158 33 . 48 146 202 56 199 102 283 168 226 145 182 195 164 . . . . 1 Gun 2018 | 12 158 28 . 48 107 155 56 199 102 283 168 226 114 121 130 111 . . . . . Cannon 210 | . . . . . . . . . . . . . 31 61 65 53 . . . . . Launcher 6 | . . 5 . . . . . . . . . . . . . . . . . . 1 Special 86 | . . . . . 39 47 . . . . . . . . . . . . . . . Kinetic 309 | . 99 24 . . . . . . . . 47 111 28 . . . . . . . . Thermal 1850 | 12 59 4 . 48 146 202 56 199 102 184 65 115 117 182 195 164 . . . . . Explosive 5 | . . 5 . . . . . . . . . . . . . . . . . . . Electromagnetic 155 | . . . . . . . . . . 99 56 . . . . . . . . . . Robot Hit Streak 43 | 3 13 8 . 15 23 17 8 24 18 18 28 24 16 43 43 37 . . . . . Robot Miss Streak 8 | 1 4 2 . 1 3 5 3 2 2 8 3 3 3 2 3 2 . . . . . Penetration Max 2 | . . . . . . . . . . . 2 1 1 . . . . . . . . Secondary Targets 28 | . 3 . . . . 4 . 4 . 10 . 6 1 . . . . . . . . Max Gunslinging Chain 1 | . 1 . . . . 1 . 1 . 1 . 1 1 . . . . . . . . Autonomous 111 | . . . . 48 63 . . . . . . . . . . . . . . . . Shots Hit Robots 2326 | 7 110 23 . 43 137 136 36 144 71 193 121 165 96 151 164 131 77 163 12 198 148 Core Hits 916 | 4 38 21 . 21 49 61 16 64 29 71 51 64 35 62 67 49 23 59 4 62 66 Critical Hits 86 | . . . . . 2 6 . . . . 13 31 9 2 1 . 1 7 . 8 6 Critical Kills 28 | . . . . . 1 2 . . . . 3 12 3 1 1 . . 2 . 2 1 Critical Parts Destroyed 50 | . . . . . 1 4 . . . . 10 15 6 1 . . 1 5 . 4 3 Melee Attacks 907 | . 10 . . . 25 38 . 12 1 . 6 7 13 18 11 8 96 197 28 230 207 Impact 76 | . . . . . 25 38 . 12 1 . . . . . . . . . . . . Slashing 822 | . 10 . . . . . . . . . 6 7 13 18 11 8 87 197 28 230 207 Piercing . | . . . . . . . . . . . . . . . . . . . . . . Sneak Attacks 61 | . . . . . 5 . . . . . . . . . 4 1 11 15 . 17 8 Combat Hostiles 26 | . . . . . . . . . . . . . . . . 1 3 12 . 10 . Follow-up Attacks 183 | . 1 . . . . . . . . . . . . . . . . 48 4 84 46 Damage Inflicted 83817 | 75 1527 380 . 1325 3763 2455 616 2426 1199 3826 2509 3470 2377 4605 5639 4562 5224 12393 955 13240 11251 Guns 30571 | 75 1443 223 . 1325 2400 1734 616 2426 1199 3524 2341 2926 1668 2695 3406 2570 . . . . . Cannons 4121 | . . . . . . . . . . . . . 590 1043 1369 1119 . . . . . Explosions 1127 | . . 157 . . 381 . . . . 302 168 . 119 . . . . . . . . Melee 47239 | . 84 . . . 663 281 . . . . . 544 . 867 864 873 5224 12393 955 13240 11251 Ramming 2 | . . . . . 2 . . . . . . . . . . . . . . . . Kinetic 1994 | . 844 179 . . . . . . . . 267 575 129 . . . . . . . . Thermal 31382 | 75 599 44 . 1325 2717 2174 616 2426 1199 2255 1151 2351 2248 3738 4775 3689 . . . . . Explosive 538 | . . 157 . . 381 . . . . . . . . . . . . . . . . Electromagnetic 2662 | . . . . . . . . . . 1571 1091 . . . . . . . . . . Impact 944 | . . . . . 663 281 . . . . . . . . . . . . . . . Slashing 46295 | . 84 . . . . . . . . . . 544 . 867 864 873 5224 12393 955 13240 11251 Piercing . | . . . . . . . . . . . . . . . . . . . . . . Highest Corruption 20 | . . . . . . . . . . . 2 2 3 2 1 . 1 2 3 12 20 Average Corruption 5 | . . . . . . . . . . . 1 1 2 1 1 . 1 1 2 5 12 Corruption Purged 29 | . . . . . . . . . . . . 2 2 2 2 . 1 2 2 6 10 Effects 131 | . . . . . . . . . . . 7 . 8 4 . . 3 5 . 26 78 Message Errors 24 | . . . . . . . . . . . 3 . 3 1 . . . 3 . 4 10 Matter Fused 19 | . . . . . . . . . . . . . 1 . . . . . . 2 16 Heat Flow Errors 10 | . . . . . . . . . . . 1 . 1 . . . . 1 . 1 6 Energy Discharges 10 | . . . . . . . . . . . 1 . 1 . . . 1 . . 2 5 Parts Rejected 1 | . . . . . . . . . . . . . . . . . . . . . 1 Data Loss (minor) 7 | . . . . . . . . . . . 2 . . . . . . . . 1 4 Data Loss (major) 2 | . . . . . . . . . . . . . . . . . . . . . 2 Misdirections 25 | . . . . . . . . . . . . . . . . . . . . 5 20 Targeting Errors 32 | . . . . . . . . . . . . . 2 2 . . 2 1 . 11 14 Weapon Failures 1 | . . . . . . . . . . . . . . 1 . . . . . . . Overload Shots 2 | . . . . . . . . . . . . . . . . 2 . . . . . Overflow Damage 4231 | . 1 . . . 136 27 . . . . . 92 78 88 44 . 610 1577 4 743 831 Projectiles 34 | . . . . . 1 . . . . . . . 9 . 24 . . . . . . Explosions 79 | . . . . . 10 . . . . . . . 69 . . . . . . . . Melee 4118 | . 1 . . . 125 27 . . . . . 92 . 88 20 . 610 1577 4 743 831 Knockbacks 2 | . . . . . . 2 . . . . . . . . . . . . . . . Impact 2 | . . . . . . 2 . . . . . . . . . . . . . . . Kinetic . | . . . . . . . . . . . . . . . . . . . . . . Secondary . | . . . . . . . . . . . . . . . . . . . . . . Self-Inflicted Damage 551 | . . 177 . . 1 . . . . 127 70 . 108 . . 68 . . . . . Shots 11 | . . 5 . . . . . . . 3 1 . 1 . . 1 . . . . . Rammed 1 | . . . . . 1 . . . . . . . . . . . . . . . . Targets Rammed 1 | . . . . . 1 . . . . . . . . . . . . . . . . Kicked . | . . . . . . . . . . . . . . . . . . . . . . Crushed . | . . . . . . . . . . . . . . . . . . . . . . Highest Temperature 483 | 78 237 18 . . 190 209 93 151 197 199 266 144 199 198 276 199 1 221 90 156 483 Average Temperature 81 | 37 111 10 . . 63 58 22 31 79 102 56 23 109 122 127 120 1 41 36 88 139 Received Heat Transfer 4636 | . 315 81 . 114 351 711 138 407 128 454 269 430 168 228 256 65 66 244 . 158 53 Effects 3 | . . . . . . . . . . . . . . . . . . . . . 3 Shutdowns 1 | . . . . . . . . . . . . . . . . . . . . . 1 Energy Bleed 2 | . . . . . . . . . . . . . . . . . . . . . 2 Siege Activations . | . . . . . . . . . . . . . . . . . . . . . . Robots Corrupted . | . . . . . . . . . . . . . . . . . . . . . . Combat Hostiles . | . . . . . . . . . . . . . . . . . . . . . . Parts Fried 23 | . . . . . 2 2 . . . 7 11 . . . . . . 1 . . . Impact Corruptions 5 | . . . . . 3 2 . . . . . . . . . . . . . . . Robots Melted 8 | . . . . . . . 1 . . 1 . . 1 . 2 3 . . . . . Combat Hostiles 8 | . . . . . . . 1 . . 1 . . 1 . 2 3 . . . . . Parts Melted 148 | 1 2 . . 3 14 5 4 16 8 12 3 5 7 10 29 24 . 3 . 1 1 Heat Transferred 48012 | 222 1480 100 . 1591 4477 4160 1313 5291 2093 4396 1704 2615 2862 4481 5948 5279 . . . . . Parts Sabotaged 5 | . . . . . . . . . . . . 5 . . . . . . . . . Parts Stolen . | . . . . . . . . . . . . . . . . . . . . . . Parts Stripped . | . . . . . . . . . . . . . . . . . . . . . . Power Chain Reactions 8 | . . . . . . . . . . 4 4 . . . . . . . . . . Missiles Intercepted . | . . . . . . . . . . . . . . . . . . . . . . Alert | -11 -10 -10 -10 -9 -8 -8 -7 -7 -7 -7 -6 -6 -5 -5 -4 -4 -4 -4 -4 -3 -3 ------- Run | Scr Mat Min Exi Min Mat Gar Fac Gar Fac Gar Fac Gar Fac Gar Fac Gar Fac Arm Lab Res Tes Peak Influence 1833 | 20 517 391 . 293 508 1118 1388 1833 962 1791 1361 1451 1176 1172 781 1245 754 1819 . 972 634 Average Influence 689 | 8 285 326 . 163 287 716 1057 1376 620 1407 1079 894 736 829 541 947 277 909 . 509 296 Maximum Alert Level 5 | . 2 1 . 1 2 4 4 5 3 5 4 4 4 4 3 4 3 5 . 3 2 Low Security (%) 10 | 100 39 . . 51 12 . . . . . . . . . . . 42 . . 6 32 Level 1 21 | . 31 100 . 48 79 16 . . 23 . . 4 . . 15 . 43 6 . 12 42 Level 2 25 | . 28 . . . 8 32 18 . 42 6 8 34 42 35 74 6 12 18 . 66 25 Level 3 21 | . . . . . . 39 41 26 34 17 23 27 56 49 9 74 1 37 . 14 . Level 4 16 | . . . . . . 10 40 40 . 33 67 33 . 15 . 18 . 37 . . . Level 5 3 | . . . . . . . . 32 . 42 . . . . . . . . . . . High Security . | . . . . . . . . . . . . . . . . . . . . . . Max Security . | . . . . . . . . . . . . . . . . . . . . . . Squads Dispatched 88 | . 2 . . . 4 . 4 . 6 . 12 . 4 . 8 . 4 9 . 12 23 Investigation 23 | . 2 . . . 2 . . . 2 . 6 . 2 . 2 . 1 2 . 2 2 Extermination 14 | . . . . . . . 1 . 1 . 1 . 1 . 2 . 1 5 . 1 1 Reinforcement 14 | . . . . . 1 . 1 . 1 . 3 . 1 . . . 2 2 . . 3 Assault 9 | . . . . . . . 1 . 2 . 2 . . . 2 . . . . 1 1 Garrison 4 | . . . . . 1 . 1 . . . . . . . 2 . . . . . . Intercept 24 | . . . . . . . . . . . . . . . . . . . . 8 16 Construction Impeded 1 | . . . . . . . . . . . . . 1 . . . . . . . . Haulers Reinforced 4 | . . . . . . . 1 . . . 1 . . . . . 2 . . . . Alert ID Control Effect 17 | . . . . . . . . . . . . . . . . . . 17 . . . Stealth | -11 -10 -10 -10 -9 -8 -8 -7 -7 -7 -7 -6 -6 -5 -5 -4 -4 -4 -4 -4 -3 -3 --------- Run | Scr Mat Min Exi Min Mat Gar Fac Gar Fac Gar Fac Gar Fac Gar Fac Gar Fac Arm Lab Res Tes Distress Signals 20 | . 1 . . . 3 . . . 3 . 1 . 2 . 2 . 2 3 . 3 . Communications Jammed . | . . . . . . . . . . . . . . . . . . . . . . Distress Signals . | . . . . . . . . . . . . . . . . . . . . . . Times Spotted 674 | . 28 7 . 21 41 34 18 35 22 42 42 48 39 33 34 20 38 63 1 47 61 Peak Tracking Total 15 | . 5 4 . 3 5 4 7 8 5 8 7 8 7 4 7 6 10 6 1 9 15 Tactical Retreats 51 | . 1 . . . 1 5 2 2 2 3 5 10 5 4 . 2 5 3 . 1 . Traps | -11 -10 -10 -10 -9 -8 -8 -7 -7 -7 -7 -6 -6 -5 -5 -4 -4 -4 -4 -4 -3 -3 ------- Run | Scr Mat Min Exi Min Mat Gar Fac Gar Fac Gar Fac Gar Fac Gar Fac Gar Fac Arm Lab Res Tes Traps Triggered 42 | . . . . . . 9 1 7 1 5 5 5 1 2 2 1 . . . 2 1 Indirectly . | . . . . . . . . . . . . . . . . . . . . . . Trap Hack Attempts . | . . . . . . . . . . . . . . . . . . . . . . Triggered . | . . . . . . . . . . . . . . . . . . . . . . Disarmed 23 | . . . . . . . . . . . . . . . . . 10 7 . 6 . Reprogrammed 29 | . . . . . . . . . . . 8 . . . 6 . 8 7 . . . Reused 9 | . . . . . . . . . . . 8 . . . . . 1 . . . . Traps Extracted . | . . . . . . . . . . . . . . . . . . . . . . Installed 1 | . . . . . 1 . . . . . . . . . . . . . . . . Triggered 9 | . . . . . . . . . . . 8 . . . . . 1 . . . . Machines | -11 -10 -10 -10 -9 -8 -8 -7 -7 -7 -7 -6 -6 -5 -5 -4 -4 -4 -4 -4 -3 -3 ---------- Run | Scr Mat Min Exi Min Mat Gar Fac Gar Fac Gar Fac Gar Fac Gar Fac Gar Fac Arm Lab Res Tes Machines Disabled 58 | . . . . . 3 7 . 7 1 8 . 9 2 . 1 4 . 6 2 . 8 Max in Single Turn 3 | . . . . . 3 2 . 2 1 2 . 2 1 . 1 2 . 1 1 . 1 Garrison Access 4 | . . . . . . . . . . . 1 . . . 1 . . . . 1 1 Garrison Relay 17 | . . . . . . 5 . 4 . 4 . 2 . . . 2 . . . . . Phase Generator 5 | . . . . . . 1 . 1 . 1 . 1 . . . 1 . . . . . Machines Sabotaged . | . . . . . . . . . . . . . . . . . . . . . . Garrisons Compromised . | . . . . . . . . . . . . . . . . . . . . . . Overloaded Fab Kills . | . . . . . . . . . . . . . . . . . . . . . . Fab Network Shutdowns 7 | . . . . . . . 1 . 1 . 1 . 1 . 1 . 1 1 . . . Hacking | -11 -10 -10 -10 -9 -8 -8 -7 -7 -7 -7 -6 -6 -5 -5 -4 -4 -4 -4 -4 -3 -3 --------- Run | Scr Mat Min Exi Min Mat Gar Fac Gar Fac Gar Fac Gar Fac Gar Fac Gar Fac Arm Lab Res Tes Machines Accessed 172 | . 8 . 1 . 13 . 7 . 18 . 22 . 13 . 20 . 19 17 2 14 18 Terminals 93 | . 7 . . . 10 . 2 . 9 . 11 . 7 . 11 . 10 9 . 7 10 Fabricators 22 | . . . . . . . 2 . 2 . 3 . 3 . 1 . 3 6 . . 2 Repair Stations 11 | . . . . . 1 . . . 1 . 2 . 1 . 1 . 1 . . 2 2 Recycling Units 17 | . 1 . . . 1 . 2 . 2 . 3 . 1 . 1 . 3 2 . 1 . Scanalyzers 11 | . . . . . . . . . 2 . 1 . . . 2 . 1 . . 2 3 Garrison Access 15 | . . . . . 1 . 1 . 2 . 2 . 1 . 4 . 1 . . 2 1 Total Hacks 979 | . 37 . 1 . 54 . 26 . 65 . 131 . 63 . 135 . 131 118 19 93 106 Successful 716 | . 19 . 1 . 43 . 17 . 42 . 95 . 44 . 91 . 102 96 19 64 83 Failed 257 | . 18 . . . 10 . 9 . 22 . 35 . 18 . 43 . 28 22 . 29 23 Catastrophic 28 | . 2 . . . . . 1 . 3 . 7 . 3 . 4 . . 5 . 3 . Database Lockouts 8 | . . . . . 1 . . . 1 . 1 . 1 . 2 . 2 . . . . Manual 478 | . 27 . 1 . 31 . 9 . 25 . 56 . 35 . 78 . 54 61 . 60 41 Terminals 731 | . 35 . . . 42 . 7 . 43 . 99 . 48 . 110 . 103 92 . 72 80 Fabricators 80 | . . . . . . . 9 . 4 . 12 . 10 . 1 . 15 22 . . 7 Repair Stations 30 | . . . . . 4 . . . 2 . 4 . 2 . 4 . 2 . . 4 8 Recycling Units 42 | . 2 . . . 2 . 7 . 6 . 8 . 2 . 3 . 6 4 . 2 . Scanalyzers 34 | . . . . . . . . . 4 . 4 . . . 7 . 2 . . 10 7 Garrison Access 42 | . . . . . 6 . 3 . 6 . 4 . 1 . 10 . 3 . . 5 4 Terminal Hacks 393 | . 10 . 1 . 21 . 3 . 19 . 54 . 23 . 50 . 59 53 19 37 44 Record 31 | . . . . . . . . . . . 2 . . . 1 . 2 . 19 5 2 Part Schematic 63 | . 2 . . . 2 . 1 . 4 . 12 . 4 . 10 . 7 9 . 1 11 Robot Schematic 10 | . . . . . 1 . 1 . 2 . 1 . . . . . 2 1 . 1 1 Robot Analysis 44 | . 3 . . . 3 . . . 3 . 4 . 4 . 5 . 2 7 . 10 3 Prototype ID Bank 39 | . 3 . . . 4 . 1 . 2 . 4 . 2 . 5 . 8 3 . 2 5 Open Door 1 | . . . . . . . . . . . . . . . . . . . . . 1 Level Access Points 5 | . . . . . . . . . . . . . 1 . . . 2 1 . 1 . Branch Access Points 6 | . . . . . . . . . . . 1 . 1 . . . 1 1 . 1 1 Emergency Access Points 1 | . . . . . . . . . . . . . . . . . . 1 . . . Machine Index 8 | . . . . . . . . . 1 . 1 . 1 . 1 . 1 1 . 1 1 Terminal Index 7 | . . . . . 2 . . . 1 . 1 . . . 1 . . 1 . . 1 Fabricator Index 2 | . . . . . . . . . . . 1 . . . . . . 1 . . . Garrison Index 3 | . . . . . . . . . . . 1 . . . 1 . 1 . . . . Alert Level 9 | . . . . . 1 . . . . . . . . . . . 1 . . 2 5 Unreport Threat 47 | . . . . . 3 . . . 5 . 8 . 6 . 6 . 4 7 . 4 4 Locate Traps 31 | . . . . . 1 . . . 1 . 3 . 2 . 7 . 7 7 . 2 1 Disarm Traps 5 | . . . . . . . . . . . . . . . . . 2 2 . 1 . Reprogram Traps 9 | . . . . . . . . . . . 2 . . . 2 . 3 2 . . . Dispatch Records 3 | . . . . . . . . . . . 2 . . . . . 1 . . . . Security Status 2 | . . . . . . . . . . . . . . . 1 . . 1 . . . Patrol Status 1 | . . . . . . . . . . . 1 . . . . . . . . . . Transport Status 1 | . . . . . . . . . . . . . . . 1 . . . . . . Investigation Status 1 | . . . . . . . . . . . 1 . . . . . . . . . . Reinforcement Status 1 | . . . . . . . . . . . 1 . . . . . . . . . . Intercept Status 1 | . . . . . . . . . . . . . . . 1 . . . . . . Coupling Status 1 | . . . . . . . . . . . . . . . 1 . . . . . . Recall Investigation 5 | . . . . . . . . . . . 1 . . . 2 . 1 . . 1 . Recall Extermination 1 | . . . . . . . . . . . 1 . . . . . . . . . . Recall Reinforcements 2 | . . . . . . . . . . . . . . . . . 1 . . 1 . Hauler Manifests 9 | . 1 . . . . . . . . . 1 . 1 . 1 . 2 1 . 1 1 Registered Components 5 | . . . . . . . . . . . . . . . 1 . 2 1 . . 1 Registered Prototypes 8 | . . . . . . . . . . . 1 . . . 1 . 3 1 . 1 1 Zone Layout 28 | . 1 . . . 4 . . . . . 4 . 1 . 2 . 6 5 . 2 3 EX-Prototype ID Bank 1 | . . . 1 . . . . . . . . . . . . . . . . . . Protovariant Controls 2 | . . . . . . . . . . . . . . . . . . . . . 2 Fabricator Hacks 65 | . . . . . . . 4 . 4 . 9 . 9 . 1 . 13 19 . . 6 Network Status 5 | . . . . . . . . . . . 2 . 1 . . . 1 1 . . . Load Schematic 20 | . . . . . . . 1 . 2 . 2 . 3 . . . 4 6 . . 2 Build 40 | . . . . . . . 3 . 2 . 5 . 5 . 1 . 8 12 . . 4 Repair Station Hacks 30 | . . . . . 4 . . . 2 . 4 . 2 . 4 . 2 . . 4 8 Scan Component 15 | . . . . . 2 . . . 1 . 2 . 1 . 2 . 1 . . 2 4 Repair 15 | . . . . . 2 . . . 1 . 2 . 1 . 2 . 1 . . 2 4 Recycling Unit Hacks 24 | . 1 . . . 1 . 4 . 3 . 5 . 1 . 1 . 4 3 . 1 . Process 2 | . . . . . . . . . . . . . . . . . 1 1 . . . Report Inventory 17 | . 1 . . . 1 . 2 . 2 . 3 . 1 . 1 . 3 2 . 1 . Retrieve Components 5 | . . . . . . . 2 . 1 . 2 . . . . . . . . . . Scanalyzer 33 | . . . . . . . . . 4 . 4 . . . 6 . 2 . . 10 7 Insert Component 16 | . . . . . . . . . 2 . 2 . . . 3 . 1 . . 5 3 Analyze 17 | . . . . . . . . . 2 . 2 . . . 3 . 1 . . 5 4 Garrison Access Hacks 19 | . . . . . 2 . 2 . 3 . 2 . 1 . 5 . 1 . . 2 1 Unlock Access 11 | . . . . . 1 . 1 . 2 . 1 . 1 . 3 . 1 . . 1 . Seal Access 4 | . . . . . . . . . . . 1 . . . 1 . . . . 1 1 Coupler Status 4 | . . . . . 1 . 1 . 1 . . . . . 1 . . . . . . Unauthorized Hacks 152 | . 8 . . . 15 . 4 . 7 . 17 . 8 . 24 . 21 21 . 10 17 Terminals 116 | . 7 . . . 12 . 1 . 5 . 12 . 6 . 17 . 16 18 . 7 15 Track 28 | . 2 . . . 2 . . . . . 3 . 1 . 4 . 4 5 . 2 5 Assimilate 10 | . 1 . . . . . . . 1 . 2 . . . 2 . 1 1 . 1 1 Botnet 58 | . 3 . . . 8 . 1 . 4 . 5 . 4 . 7 . 7 9 . 3 7 Detonate 6 | . . . . . 1 . . . . . 1 . . . 1 . 2 . . . 1 Operators 14 | . 1 . . . 1 . . . . . 1 . 1 . 3 . 2 3 . 1 1 Fabricators 8 | . . . . . . . 1 . . . 2 . 1 . . . 1 2 . . 1 Siphon 5 | . . . . . . . 1 . . . 1 . . . . . 1 1 . . 1 Download 3 | . . . . . . . . . . . 1 . 1 . . . . 1 . . . Repair Stations . | . . . . . . . . . . . . . . . . . . . . . . Recycling Units 13 | . 1 . . . 1 . 1 . 2 . 1 . 1 . 2 . 2 1 . 1 . Reject 6 | . 1 . . . 1 . 1 . 1 . . . 1 . 1 . . . . . . Mask 7 | . . . . . . . . . 1 . 1 . . . 1 . 2 1 . 1 . Scanalyzers . | . . . . . . . . . . . . . . . . . . . . . . Garrison Access 15 | . . . . . 2 . 1 . . . 2 . . . 5 . 2 . . 2 1 Reprogram 8 | . . . . . 1 . 1 . . . 1 . . . 3 . 1 . . 1 . Watchers 7 | . . . . . 1 . . . . . 1 . . . 2 . 1 . . 1 1 Data Cores Recovered 4 | . . . . . . . . . . . 1 . 1 . . . . . . 1 1 Used 3 | . . . . . . . . . . . 1 . . . . . . . . 1 1 Hacking Detections 118 | . 7 . . . 12 . 5 . 13 . 14 . 10 . 13 . 10 11 . 8 15 Full Trace Events 9 | . 3 . . . . . . . 1 . 2 . . . 1 . . . . 2 . Feedback Events 1 | . . . . . . . . . . . . . . . 1 . . . . . . Corruption 1 | . . . . . . . . . . . . . . . 1 . . . . . . Feedback Blocked . | . . . . . . . . . . . . . . . . . . . . . . Robot Schematics Acquired 12 | . . . . . 1 . 1 . 2 . 2 . . . . . 2 2 . 1 1 Robots Built 2 | . . . . . . . 2 . . . . . . . . . . . . . . Matter 438 | . . . . . . . 438 . . . . . . . . . . . . . . Time 116 | . . . . . . . 116 . . . . . . . . . . . . . . Total Robot Build Rating 6 | . . . . . . . 6 . . . . . . . . . . . . . . Part Schematics Acquired 79 | . 2 . . . 2 . 1 . 6 . 14 . 5 . 13 . 8 8 . 6 14 Parts Built 25 | . . . . . . . . . 2 . 4 . 3 . . . 3 11 . . 2 Matter 7180 | . . . . . . . . . 402 . 627 . 716 . 278 . 1146 3177 . . 834 Time 2568 | . . . . . . . . . 201 . 223 . 187 . 139 . 316 1206 . . 296 Total Part Build Rating 165 | . . . . . . . . . 11 . 28 . 14 . . . 20 74 . . 18 Parts Repaired 14 | . . . . . 2 . . . 1 . 2 . . . 2 . 1 . . 2 4 Time 600 | . . . . . 70 . . . 38 . 84 . 28 . 56 . 56 . . 46 222 Parts Recycled . | . . . . . . . . . . . . . . . . . . . . . . Recycled Matter 251 | . . . . . . . . . . . . . . . . . 205 46 . . . Retrieved Matter . | . . . . . . . . . . . . . . . . . . . . . . Retrieved Components 16 | . . . . . . . 8 . 3 . 5 . . . . . . . . . . Parts Scanalyzed 16 | . . . . . . . . . 2 . 2 . . . 3 . 1 . . 5 3 Part Schematics Acquired 16 | . . . . . . . . . 2 . 2 . . . 3 . 1 . . 5 3 Parts Damaged 3 | . . . . . . . . . . . . . . . 1 . . . . 1 1 Bothacking | -11 -10 -10 -10 -9 -8 -8 -7 -7 -7 -7 -6 -6 -5 -5 -4 -4 -4 -4 -4 -3 -3 ------------ Run | Scr Mat Min Exi Min Mat Gar Fac Gar Fac Gar Fac Gar Fac Gar Fac Gar Fac Arm Lab Res Tes Used RIF Installer 6 | . . . . . . 1 . 1 . 1 . 1 . 1 . 1 . . . . . Robot Detection 1 | . . . . . . . . . . 1 . . . . . . . . . . . Patrol Navigation 1 | . . . . . . . . . . . . . . . . 1 . . . . . Alert ID Control 1 | . . . . . . . . . . . . 1 . . . . . . . . . Structural Interface 1 | . . . . . . . . 1 . . . . . . . . . . . . . Program Shield 1 | . . . . . . . . . . . . . . 1 . . . . . . . Robots Hacked 7 | . . . . . . . . . . . . . . . . . 7 . . . . Non-combat 3 | . . . . . . . . . . . . . . . . . 3 . . . . Combat 4 | . . . . . . . . . . . . . . . . . 4 . . . . Robot Hacks Applied 7 | . . . . . . . . . . . . . . . . . 7 . . . . parse_system 3 | . . . . . . . . . . . . . . . . . 3 . . . . no_distress 1 | . . . . . . . . . . . . . . . . . 1 . . . . disable_weapons 1 | . . . . . . . . . . . . . . . . . 1 . . . . reboot_system 1 | . . . . . . . . . . . . . . . . . 1 . . . . overwrite_iff 1 | . . . . . . . . . . . . . . . . . 1 . . . . Relay Couplers Released 29 | . . . . . . 9 . 5 . 7 . 4 . . . 4 . . . . . Machine Destruction 29 | . . . . . . 9 . 5 . 7 . 4 . . . 4 . . . . . Attached 1 | . . . . . . . . . . . . . . . . 1 . . . . . Robots Rewired 28 | . . . . . . 11 . 9 . . . . 1 . . . . 7 . . . Allies Hacked 1 | . . . . . . . . . . . . . . . . . . . . 1 . Hacks Repelled . | . . . . . . . . . . . . . . . . . . . . . . Allies | -11 -10 -10 -10 -9 -8 -8 -7 -7 -7 -7 -6 -6 -5 -5 -4 -4 -4 -4 -4 -3 -3 -------- Run | Scr Mat Min Exi Min Mat Gar Fac Gar Fac Gar Fac Gar Fac Gar Fac Gar Fac Arm Lab Res Tes Total Allies 102 | . . 3 . 2 2 11 2 9 1 . 2 . 1 . 4 . 2 21 . 35 7 Largest Group 18 | . . 3 2 2 2 11 13 6 1 . 1 . 1 . 1 . 2 11 5 18 8 Highest-Rated Group 491 | . . 40 24 44 44 218 270 84 26 . 26 . 49 . 44 . 84 491 268 268 116 Highest-Rated Ally 90 | . . 16 16 31 31 38 38 21 26 . 26 . 49 . 44 . 58 60 60 90 26 Total Orders 15 | . . . . . . . 4 . . . 2 . . . 2 . 1 6 . . . STAY 5 | . . . . . . . 2 . . . . . . . 1 . . 2 . . . GOTO 3 | . . . . . . . . . . . 1 . . . . . 1 1 . . . FOLLOW 7 | . . . . . . . 2 . . . 1 . . . 1 . . 3 . . . Ally Attacks 576 | . . 3 . 14 5 25 80 38 . . . . 5 . . . 4 198 8 110 86 Total Damage 12178 | . . 43 . 169 63 130 1638 481 . . . . 169 . . . 161 5524 29 1888 1883 Kills 71 | . . 2 . 4 . 3 14 3 . . . . . . . . . 26 . 11 8 Allies Corrupted 7 | . . . . . . . . . . . . . . . . . 1 2 . 2 2 Allies Melted . | . . . . . . . . . . . . . . . . . . . . . . Intel | -11 -10 -10 -10 -9 -8 -8 -7 -7 -7 -7 -6 -6 -5 -5 -4 -4 -4 -4 -4 -3 -3 ------- Run | Scr Mat Min Exi Min Mat Gar Fac Gar Fac Gar Fac Gar Fac Gar Fac Gar Fac Arm Lab Res Tes Robot Analysis Total 44 | . 3 . . . 3 . . . 3 . 4 . 4 . 5 . 2 7 . 10 3 Derelict Logs Recovered 1 | . . . . 1 . . . . . . . . . . . . . . . . . Drone Launches . | . . . . . . . . . . . . . . . . . . . . . . Drone Recoveries . | . . . . . . . . . . . . . . . . . . . . . . Exploration | -11 -10 -10 -10 -9 -8 -8 -7 -7 -7 -7 -6 -6 -5 -5 -4 -4 -4 -4 -4 -3 -3 ------------- Run | Scr Mat Min Exi Min Mat Gar Fac Gar Fac Gar Fac Gar Fac Gar Fac Gar Fac Arm Lab Res Tes Turns Passed 18137 | 112 766 371 203 624 1236 1379 524 840 821 992 1257 781 808 574 1339 431 1124 1577 164 879 1335 Spaces Moved 25381 | 82 822 667 250 666 1319 1233 767 1152 1221 1023 2422 912 1130 863 2232 499 1391 2569 489 1835 1837 Core 323 | 36 80 . . . 1 172 . 2 . . . . . . . . . 3 . 8 21 Treads . | . . . . . . . . . . . . . . . . . . . . . . Legs . | . . . . . . . . . . . . . . . . . . . . . . Wheels 46 | 46 . . . . . . . . . . . . . . . . . . . . . Hover 44 | . 44 . . . . . . . . . . . . . . . . . . . . Flight 24968 | . 698 667 250 666 1318 1061 767 1150 1221 1023 2422 912 1130 863 2232 499 1391 2566 489 1827 1816 Fastest Speed 10 | 50 37 37 37 34 26 26 26 23 23 23 23 24 20 20 20 17 15 10 10 10 10 Average Speed 24 | 76 43 37 77 48 47 43 28 23 23 23 23 24 20 20 20 19 17 12 10 12 16 Slowest Speed 205 | 100 120 117 117 117 114 150 96 150 23 23 24 27 24 20 20 20 20 200 10 205 205 Overloaded Moves 4 | . . . . . . . . . . . . . . . . 4 . . . . . Propulsion Burnouts . | . . . . . . . . . . . . . . . . . . . . . . Robots Hopped 86 | . 4 2 . 9 4 . 1 2 5 . 9 . 18 . 7 . 16 5 . 4 . Cave-ins Triggered . | . . . . . . . . . . . . . . . . . . . . . . Teleports 1 | . . . . . . . . . . . . . . . . . . . . . 1 Exploration Rate (%) 71 | 3 83 98 68 99 88 96 23 97 48 98 64 98 34 99 49 60 35 98 99 41 93 Regions Visited 21 Branch Regions 6 Pre-discovered Areas . | . . . . . . . . . . . . . . . . . . . . . . Known Exits Taken 14 | . 1 1 1 1 1 . 1 . 1 . 1 . 1 . 1 . 1 1 1 1 . Unknown Exits Taken 1 | 1 . . . . . . . . . . . . . . . . . . . . . Scrap Searched 2 | . . 1 . 1 . . . . . . . . . . . . . . . . . Spaces Dug 64 | . . . . . . 5 . 2 1 . 6 . 9 5 2 . 11 4 5 2 12 Terrain Destroyed 851 | . . 32 . 5 66 97 . 93 1 185 34 150 71 5 23 55 11 4 5 2 12 Melee 64 | . . . . . . 5 . 2 1 . 6 . 9 5 2 . 11 4 5 2 12 Projectile 47 | . . . . 5 4 . . . . . 5 . 12 . 21 . . . . . . AOE 740 | . . 32 . . 62 92 . 91 . 185 23 150 50 . . 55 . . . . . Actions | -11 -10 -10 -10 -9 -8 -8 -7 -7 -7 -7 -6 -6 -5 -5 -4 -4 -4 -4 -4 -3 -3 --------- Run | Scr Mat Min Exi Min Mat Gar Fac Gar Fac Gar Fac Gar Fac Gar Fac Gar Fac Arm Lab Res Tes Total 34338 | 117 1054 757 260 956 1765 1758 1015 1532 1680 1564 2965 1237 1574 1110 2960 692 2124 3600 569 2326 2723 Wait 5259 | 13 56 57 2 254 304 87 173 81 360 292 393 80 339 64 566 49 573 735 16 239 526 Move 25188 | 81 813 662 249 649 1310 1231 764 1146 1210 1021 2404 910 1095 861 2217 497 1359 2559 488 1825 1837 Hop 79 | . 4 2 . 7 4 . 1 2 5 . 8 . 16 . 7 . 15 4 . 4 . Pick Up 79 | 2 5 . 1 2 6 . 4 6 4 . 5 1 6 1 4 2 6 4 4 8 8 Fast Attach 179 | 8 12 3 2 . 11 6 8 2 5 . 10 8 5 2 11 1 13 10 18 19 25 Attach 30 | . 1 . . 1 5 . 1 1 2 . . 4 3 . 1 1 1 . 2 3 4 Detach 17 | . 2 1 . . 2 2 1 . 2 . 1 3 . . . . . . 1 1 1 Swap 96 | 2 7 2 1 1 7 8 3 4 4 . 8 . 12 2 8 . 4 6 5 5 7 Drop 231 | 5 18 3 5 2 15 10 12 8 12 . 15 . 14 4 8 1 18 15 16 20 30 Fire 947 | 6 103 24 . . 46 125 28 78 34 99 56 120 43 61 65 58 . . . . 1 Melee 652 | . 9 . . . 25 38 . 12 1 . 6 7 13 18 11 8 96 131 19 127 131 Ram 1 | . . . . . 1 . . . . . . . . . . . . . . . . Kick . | . . . . . . . . . . . . . . . . . . . . . . Crush . | . . . . . . . . . . . . . . . . . . . . . . Escape Stasis 546 | . . . . . . 152 . 108 18 90 18 67 . 36 . 18 . . . . 39 Rewire 96 | . . . . . . 39 . 38 . . . . 1 . . . . 18 . . . Trap 1 | . . . . . 1 . . . . . . . . . . . . . . . . Miscellaneous 937 | . 24 3 . 40 28 60 20 46 23 62 41 37 27 61 62 57 39 118 . 75 114 Route ------- -11/Scrapyard -10/Materials (discovered 3 exits: *Mat x2 / *Min) -10/Mines (discovered 3 exits: *Mat x2 / *Exi) -10/Exiles -9/Mines (discovered 2 exits: *Mat x2) -8/Materials (discovered 3 exits: *Fac x2 / Gar) -8/Garrison (discovered 3 exits: *Fac x3) -7/Factory (discovered 2 exits: *Fac / Gar) -7/Garrison (discovered 3 exits: *Fac x3) -7/Factory (discovered 3 exits: *Fac / Gar / Gar) -7/Garrison (discovered 3 exits: *Fac x3) -6/Factory (discovered 8 exits: *Fac x3 / *Low x2 / Ext x2 / Gar) -6/Garrison (discovered 3 exits: *Fac x3) -5/Factory (discovered 7 exits: *Fac x4 / Upp x2 / Gar) -5/Garrison (discovered 3 exits: *Fac x3) -4/Factory (discovered 7 exits: *Res x2 / *Upp x2 / Gar / Gar / Gar) -4/Garrison -4/Factory (discovered 8 exits: *Res x4 / *Upp x2 / *Arm / Gar) -4/Armory (discovered 3 exits: *Res x2 / *Lab) -4/Lab -3/Research (discovered 6 exits: Res x3 / *Tes x2 / Gar) -3/Testing (discovered 1 exit: *Res) History --------- Turn | Location | Event 7 | -11/Scrapyard | Discovered new exit (range 15) 9 | -11/Scrapyard | Upgraded with Propulsion slot (x1) 9 | -11/Scrapyard | Upgraded with Utility slot (x1) 9 | -11/Scrapyard | Upgraded with Weapon slot (x1) 113 | -11/Scrapyard | Entered Materials 250 | -10/Materials | Discovered new exit (range 15) 469 | -10/Materials | Core integrity fell below 50% 513 | -10/Materials | Build established: Scavenger-Mutant 518 | -10/Materials | Reached level 2 523 | -10/Materials | Upgraded with Utility slot (x2) 563 | -10/Materials | Discovered new exit (range 17) 710 | -10/Materials | Discovered new exit (range 7) 717 | -10/Materials | Identified exit to Materials 879 | -10/Materials | Identified exit to Mines 879 | -10/Materials | Entered Mines 891 | -10/Mines | Discovered exit to Materials (range 9) 897 | -10/Mines | Met a Derelict bent on vengeance 915 | -10/Mines | Deemed a non-threat by the Exiles lab entrance 915 | -10/Mines | Discovered new exit (range 5) 917 | -10/Mines | Identified exit to Exiles 943 | -10/Mines | Assembled infested the area 948 | -10/Mines | Assisted by a Guerilla fighting off Assembled 995 | -10/Mines | Reached level 3 1008 | -10/Mines | Upgraded with Utility slot (x1) 1012 | -10/Mines | Joined a pair of Derelicts in attacking an 0b10 outpost 1053 | -10/Mines | Assisted by bots powering up and referring to "LRC-V3" 1177 | -10/Mines | Discovered exit to Materials (range 5) 1250 | -10/Mines | Entered Exiles 1250 | -10/Exiles | Accompanied by 2 allies 1259 | -10/Exiles | Met 8R-AWN 1266 | -10/Exiles | Met EX-HEX 1278 | -10/Exiles | Met EX-BIN 1282 | -10/Exiles | Aligned with FarCom system 1283 | -10/Exiles | Given EX-Vault access code 1292 | -10/Exiles | Opened EX-Vault 1297 | -10/Exiles | Found Modified TNC 1300 | -10/Exiles | Found AWS/Thermal 1308 | -10/Exiles | Found Cloak of Protection 1335 | -10/Exiles | Warned to stay clear of 0b10 Research branches 1366 | -10/Exiles | Met EX-DEC 1438 | -10/Exiles | Discovered new exit (range 12) 1448 | -10/Exiles | Identified exit to Mines 1453 | -10/Exiles | Stole three prototypes: Modified TNC, AWS/Thermal, Cloak of Protection 1453 | -10/Exiles | Entered Mines 1453 | -9/Mines | Accompanied by 2 allies 1506 | -9/Mines | Reached level 4 1507 | -9/Mines | Upgraded with Propulsion slot (x1) 1600 | -9/Mines | Learned location of 1 exit from Proximity Caves 1657 | -9/Mines | Discovered new exit (range 5) 1658 | -9/Mines | Identified exit to Materials 1729 | -9/Mines | Discovered exit to Materials (range 10) 1767 | -9/Mines | Excavation squad dispatched 1767 | -9/Mines | A large section of the Mines collapsed 1946 | -9/Mines | Reached level 5 1963 | -9/Mines | Found a hidden stash of uninstalled traps 2077 | -9/Mines | Entered Materials 2077 | -8/Materials | Accompanied by 2 allies 2079 | -8/Materials | Reached level 6 2079 | -8/Materials | Upgraded with Utility slot (x1) 2097 | -8/Materials | Led the pair of lost Derelicts to an unsafe place 2169 | -8/Materials | Identified exit to Garrison 2179 | -8/Materials | Upgraded with Weapon slot (x1) 2308 | -8/Materials | Reached level 7 2308 | -8/Materials | Upgraded with Utility slot (x1) 2524 | -8/Materials | Build established: Scavenger-Scout 2527 | -8/Materials | Discovered new exit (range 4) 2528 | -8/Materials | Identified exit to Factory 2554 | -8/Materials | Reached level 8 2788 | -8/Materials | Discovered exit to Factory (range 8) 2858 | -8/Materials | Build established: Scavenger-Mutant 2981 | -8/Materials | Central database locked down 3043 | -8/Materials | Reached level 9 3047 | -8/Materials | Upgraded with Propulsion slot (x1) 3195 | -8/Materials | Repaired Plasma Cutter 3235 | -8/Materials | Repaired Insulated Plating 3274 | -8/Materials | Garrison activated, responded to threat 3313 | -8/Materials | Entered Garrison 3313 | -8/Garrison | Accompanied by 2 allies 3318 | -8/Garrison | Triggered checkpoint 3338 | -8/Garrison | Reached level 10 3346 | -8/Garrison | Upgraded with Power slot (x1) 3408 | -8/Garrison | Build established: Hacker-Sprinter 3549 | -8/Garrison | Garrison Relay disabled 3552 | -8/Garrison | Triggered checkpoint 3564 | -8/Garrison | Core integrity fell below 50% 3642 | -8/Garrison | Discovered exit to Factory (range 10) 3669 | -8/Garrison | Garrison Relay disabled 3674 | -8/Garrison | Triggered checkpoint 3774 | -8/Garrison | Triggered checkpoint 3794 | -8/Garrison | Discovered exit to Factory (range 10) 3798 | -8/Garrison | Installed Relay Interface Framework 3798 | -8/Garrison | Reached level 11 3822 | -8/Garrison | Triggered checkpoint 3871 | -8/Garrison | Garrison Relay disabled 3962 | -8/Garrison | Triggered checkpoint 4066 | -8/Garrison | Triggered checkpoint 4075 | -8/Garrison | Triggered checkpoint 4120 | -8/Garrison | Discovered exit to Factory (range 10) 4215 | -8/Garrison | Triggered checkpoint 4282 | -8/Garrison | Garrison Relay disabled 4290 | -8/Garrison | Triggered checkpoint 4382 | -8/Garrison | Phase Generator disabled 4382 | -8/Garrison | Reached level 12 4387 | -8/Garrison | Upgraded with Utility slot (x1) 4544 | -8/Garrison | Garrison Relay disabled 4692 | -8/Garrison | Entered Factory 4692 | -7/Factory | Accompanied by 11 allies 4694 | -7/Factory | FarCom data flow suspended 4694 | -7/Factory | Reached level 13 4777 | -7/Factory | Fabricated O-24 Administrator (x1) 4789 | -7/Factory | Local fabrication network quarantined 4835 | -7/Factory | Fabricated O-24 Administrator (x1) 4907 | -7/Factory | Discovered new exit (range 18) 4990 | -7/Factory | Build established: Commander-Scout 5072 | -7/Factory | Reached level 14 5092 | -7/Factory | First assault squad dispatched 5129 | -7/Factory | Garrison activated, responded to threat 5212 | -7/Factory | Identified exit to Garrison 5216 | -7/Factory | Entered Garrison 5218 | -7/Garrison | Reached level 15 5218 | -7/Garrison | Upgraded with Propulsion slot (x1) 5228 | -7/Garrison | Garrison Relay disabled 5234 | -7/Garrison | Triggered checkpoint 5391 | -7/Garrison | Discovered new exit (range 10) 5394 | -7/Garrison | Identified exit to Factory 5396 | -7/Garrison | Expanded RIF knowledge: Structural Interface 5438 | -7/Garrison | Garrison Relay disabled 5446 | -7/Garrison | Triggered checkpoint 5480 | -7/Garrison | Triggered checkpoint 5482 | -7/Garrison | Build established: Hacker-Sprinter 5513 | -7/Garrison | Garrison Relay disabled 5524 | -7/Garrison | Discovered exit to Factory (range 9) 5598 | -7/Garrison | Garrison Relay disabled 5608 | -7/Garrison | Triggered checkpoint 5612 | -7/Garrison | Triggered checkpoint 5622 | -7/Garrison | Triggered checkpoint 5632 | -7/Garrison | Reached level 16 5635 | -7/Garrison | Upgraded with Weapon slot (x1) 5740 | -7/Garrison | Discovered exit to Factory (range 16) 5744 | -7/Garrison | Triggered checkpoint 5876 | -7/Garrison | Triggered checkpoint 5962 | -7/Garrison | Phase Generator disabled 5980 | -7/Garrison | Triggered checkpoint 5994 | -7/Garrison | Triggered checkpoint 6056 | -7/Garrison | Entered Factory 6223 | -7/Factory | Identified exit to Garrison 6332 | -7/Factory | Discovered new exit (range 13) 6384 | -7/Factory | Repaired Reflective Plating 6456 | -7/Factory | First assault squad dispatched 6611 | -7/Factory | Fabricated Imp. Powered Armor? 6748 | -7/Factory | Local fabrication network quarantined 6800 | -7/Factory | Fabricated Imp. Hacking Suite (x1) 6839 | -7/Factory | Central database locked down 6876 | -7/Factory | Identified exit to Garrison 6877 | -7/Factory | Entered Garrison 6877 | -7/Garrison | Reached level 17 6883 | -7/Garrison | Spotted B-75 Beast 6883 | -7/Garrison | Spotted B-75 Beast 6908 | -7/Garrison | Phase Generator disabled 6912 | -7/Garrison | Triggered checkpoint 6929 | -7/Garrison | Build established: Wizard-Sprinter 7062 | -7/Garrison | Destroyed 16 combat bots 7110 | -7/Garrison | Garrison Relay disabled 7116 | -7/Garrison | Triggered checkpoint 7126 | -7/Garrison | Garrison Relay disabled 7152 | -7/Garrison | Triggered checkpoint 7168 | -7/Garrison | Discovered new exit (range 15) 7171 | -7/Garrison | Identified exit to Factory 7204 | -7/Garrison | Garrison Relay disabled 7214 | -7/Garrison | Triggered checkpoint 7233 | -7/Garrison | Triggered checkpoint 7359 | -7/Garrison | Discovered exit to Factory (range 13) 7388 | -7/Garrison | Triggered checkpoint 7421 | -7/Garrison | Discovered exit to Factory (range 10) 7425 | -7/Garrison | Expanded RIF knowledge: Robot Detection 7448 | -7/Garrison | Triggered checkpoint 7503 | -7/Garrison | Garrison Relay disabled 7518 | -7/Garrison | Triggered checkpoint 7519 | -7/Garrison | Triggered checkpoint 7558 | -7/Garrison | Triggered checkpoint 7869 | -7/Garrison | Entered Factory 7871 | -6/Factory | Reached level 18 7877 | -6/Factory | Discovered new exit (range 17) 7892 | -6/Factory | Identified exit to Lower Caves 8028 | -6/Factory | Repaired Hyp. Coil Gun 8031 | -6/Factory | Discovered new exit (range 5) 8032 | -6/Factory | Identified exit to Factory 8197 | -6/Factory | Fabricated Quantum Rifle? 8198 | -6/Factory | Reached level 19 8294 | -6/Factory | Fabricated Adv. Hacking Suite (x1) 8326 | -6/Factory | Central database locked down 8476 | -6/Factory | Local fabrication network quarantined 8486 | -6/Factory | Fabricated Adv. System Shield (x1) 8569 | -6/Factory | First assault squad dispatched 8610 | -6/Factory | Discovered exit to Lower Caves (range 14) 8619 | -6/Factory | Identified exit to Garrison 8706 | -6/Factory | Repaired Imp. Coolant Injector 8800 | -6/Factory | Discovered exit to Factory (range 8) 9004 | -6/Factory | Spotted B-75 Beast 9081 | -6/Factory | Identified exit to Extension 9082 | -6/Factory | Found Prototype Processor 9082 | -6/Factory | Identified Exp. Signal Interpreter 9098 | -6/Factory | Discovered exit to Factory (range 9) 9126 | -6/Factory | Entered Garrison 9128 | -6/Garrison | Expanded RIF knowledge: Alert ID Control 9134 | -6/Garrison | Garrison Relay disabled 9156 | -6/Garrison | Triggered checkpoint 9202 | -6/Garrison | Triggered checkpoint 9327 | -6/Garrison | Discovered exit to Factory (range 3) 9432 | -6/Garrison | Phase Generator disabled 9445 | -6/Garrison | Triggered checkpoint 9479 | -6/Garrison | Reached level 20 9481 | -6/Garrison | Upgraded with Utility slot (x1) 9539 | -6/Garrison | Triggered checkpoint 9571 | -6/Garrison | Discovered exit to Factory (range 14) 9624 | -6/Garrison | Triggered checkpoint 9681 | -6/Garrison | Triggered checkpoint 9711 | -6/Garrison | Garrison Relay disabled 9767 | -6/Garrison | Core integrity fell below 50% 9773 | -6/Garrison | Triggered checkpoint 9813 | -6/Garrison | Discovered exit to Factory (range 9) 9825 | -6/Garrison | Triggered checkpoint 9841 | -6/Garrison | Triggered checkpoint 9907 | -6/Garrison | Entered Factory 9909 | -5/Factory | Reached level 21 9909 | -5/Factory | Upgraded with Propulsion slot (x1) 9973 | -5/Factory | Fabricated Imp. Powered Armor (x1) 10043 | -5/Factory | Core integrity fell below 50% 10087 | -5/Factory | Fabricated Imp. Cesium-ion Thruster (x1) 10158 | -5/Factory | Fabricated Imp. Cesium-ion Thruster (x1) 10305 | -5/Factory | Local fabrication network quarantined 10650 | -5/Factory | Discovered new exit (range 17) 10669 | -5/Factory | Identified exit to Factory 10671 | -5/Factory | Identified exit to Upper Caves 10671 | -5/Factory | Central database locked down 10715 | -5/Factory | Identified exit to Garrison 10715 | -5/Factory | Entered Garrison 10717 | -5/Garrison | Reached level 22 10752 | -5/Garrison | Triggered checkpoint 10795 | -5/Garrison | Spotted B-75 Beast 10828 | -5/Garrison | Triggered checkpoint 10848 | -5/Garrison | Destroyed B-75 Beast 10892 | -5/Garrison | Triggered checkpoint 10934 | -5/Garrison | Discovered exit to Factory (range 16) 10980 | -5/Garrison | Destroyed 7 combat bots 11026 | -5/Garrison | Triggered checkpoint 11058 | -5/Garrison | Triggered checkpoint 11127 | -5/Garrison | Discovered exit to Factory (range 11) 11148 | -5/Garrison | Triggered checkpoint 11187 | -5/Garrison | Discovered exit to Factory (range 9) 11190 | -5/Garrison | Expanded RIF knowledge: Program Shield 11198 | -5/Garrison | Triggered checkpoint 11289 | -5/Garrison | Entered Factory 11291 | -4/Factory | Reached level 23 11302 | -4/Factory | Garrison activated, responded to threat 11321 | -4/Factory | Reached level 24 11356 | -4/Factory | Discovered new exit (range 5) 11357 | -4/Factory | Identified exit to Research 11527 | -4/Factory | Identified exit to Garrison 11787 | -4/Factory | Local fabrication network quarantined 11878 | -4/Factory | Discovered new exit (range 17) 11895 | -4/Factory | Upgraded with Utility slot (x1) 11916 | -4/Factory | Identified exit to Garrison 12039 | -4/Factory | First assault squad dispatched 12352 | -4/Factory | Discovered exit to Research (range 12) 12359 | -4/Factory | Central database locked down 12408 | -4/Factory | Repaired Imp. Powered Armor 12437 | -4/Factory | Repaired Imp. Coolant Injector 12471 | -4/Factory | Reached level 25 12540 | -4/Factory | Discovered new exit (range 12) 12555 | -4/Factory | Identified exit to Upper Caves 12595 | -4/Factory | Garrison activated, responded to threat 12626 | -4/Factory | Spotted B-86 Titan 12628 | -4/Factory | Identified exit to Garrison 12628 | -4/Factory | Entered Garrison 12629 | -4/Garrison | Expanded RIF knowledge: Patrol Navigation 12644 | -4/Garrison | Phase Generator disabled 12656 | -4/Garrison | Garrison Relay disabled 12731 | -4/Garrison | Spotted B-86 Titan 12746 | -4/Garrison | Triggered checkpoint 12820 | -4/Garrison | Core integrity fell below 50% 12973 | -4/Garrison | Destroyed B-86 Titan 13018 | -4/Garrison | Triggered checkpoint 13037 | -4/Garrison | Discovered new exit (range 16) 13040 | -4/Garrison | Identified exit to Factory 13047 | -4/Garrison | Garrison Relay disabled 13047 | -4/Garrison | Reached level 26 13050 | -4/Garrison | Upgraded with Utility slot (x1) 13059 | -4/Garrison | Entered Factory 13082 | -4/Factory | Upgraded with Weapon slot (x1) 13107 | -4/Factory | Identified exit to Armory 13166 | -4/Factory | Central database locked down 13173 | -4/Factory | Found Prototype Processor 13173 | -4/Factory | Identified Exp. Melee Analysis Suite 13211 | -4/Factory | Identified exit to Garrison 13530 | -4/Factory | Fabricated Exp. Cesium-ion Thruster (x1) 13617 | -4/Factory | Fabricated Exp. Cesium-ion Thruster (x1) 13827 | -4/Factory | Fabricated Adv. Powered Armor (x1) 13880 | -4/Factory | Found Prototype Device 13880 | -4/Factory | Identified EM Disruption Field 13998 | -4/Factory | Repaired Imp. Powered Armor 14070 | -4/Factory | Local fabrication network quarantined 14146 | -4/Factory | Spotted B-86 Titan 14162 | -4/Factory | Destroyed B-86 Titan 14183 | -4/Factory | Entered Armory 14267 | -4/Armory | Assisted by bots powering up and referring to "LRC-V3" 14340 | -4/Armory | Spotted B-86 Titan 14353 | -4/Armory | Allies destroyed B-86 Titan 14370 | -4/Armory | Found Adv. Force Booster 14686 | -4/Armory | Fabricated Vibroblade (x1) 14781 | -4/Armory | Fabricated Vibroblade (x1) 14787 | -4/Armory | Allied Derelicts emerged from ambush trap array 14793 | -4/Armory | Reached level 27 14801 | -4/Armory | Upgraded with Power slot (x1) 14828 | -4/Armory | Fabricated Exp. Cesium-ion Thruster? 14876 | -4/Armory | Fabricated Vibroblade (x1) 14971 | -4/Armory | Fabricated Vibroblade (x1) 15022 | -4/Armory | Fabricated Exp. Cesium-ion Thruster (x1) 15046 | -4/Armory | Fabricated Adv. Actuator Array (x1) 15163 | -4/Armory | Fabricated Nanoactuators (x2) 15194 | -4/Armory | Fabricated Exp. Cesium-ion Thruster (x1) 15372 | -4/Armory | Local fabrication network quarantined 15439 | -4/Armory | Fabricated Exp. System Shield (x1) 15695 | -4/Armory | Discovered new exit (range 13) 15700 | -4/Armory | Destroyed 8 combat bots 15735 | -4/Armory | Identified exit to Lab 15760 | -4/Armory | Entered Lab 15760 | -4/Lab | Accompanied by 5 allies 15760 | -4/Lab | Discovered exit to Research (range 9) 15762 | -4/Lab | Reached level 28 15762 | -4/Lab | Unable to decrypt terminal 15762 | -4/Lab | Unable to decrypt terminal 15770 | -4/Lab | Detected for breach 15773 | -4/Lab | Gained access to the hidden lab's interior 15773 | -4/Lab | Unable to decrypt terminal 15775 | -4/Lab | Unable to decrypt terminal 15781 | -4/Lab | Confronted by A5 15798 | -4/Lab | Destroyed A5 15803 | -4/Lab | Found Exp. Hacking Suite 15818 | -4/Lab | Found Prototype Protection 15818 | -4/Lab | Identified Med. Regenerative Plating 15828 | -4/Lab | Unable to decrypt terminal 15829 | -4/Lab | Found Prototype Special Weapon 15829 | -4/Lab | Identified Gui. Remote Datajack 15836 | -4/Lab | Found Prototype Device 15836 | -4/Lab | Identified AEGIS Remote Shield 15838 | -4/Lab | Found Prototype Hackware 15838 | -4/Lab | Identified Deep Network Scanner 15843 | -4/Lab | Found Alien Artifact 15843 | -4/Lab | Identified Core Reset Matrix 15843 | -4/Lab | Used Core Reset Matrix 15847 | -4/Lab | Sensed 3 artifacts in vicinity 15848 | -4/Lab | Found Integrated Dissipator 15848 | -4/Lab | Installed Integrated Dissipator, increased core heat dissipation (+2%) 15852 | -4/Lab | Found Core Regenerator 15867 | -4/Lab | Found Prototype Energy Gun 15867 | -4/Lab | Identified Hyp. EM Gauss Rifle 15882 | -4/Lab | Discovered exit to Research (range 11) 15883 | -4/Lab | Unable to decrypt terminal 15886 | -4/Lab | Used Core Regenerator, restored core integrity (+74) 15894 | -4/Lab | Found Transdimensional Reconstructor 15924 | -4/Lab | Entered Research 15924 | -3/Research | Accompanied by 5 allies 15964 | -3/Research | Reached level 29 16046 | -3/Research | Destroyed 11 combat bots 16056 | -3/Research | Identified exit to Garrison 16076 | -3/Research | Intercept squad dispatched 16113 | -3/Research | Spotted Tracker 16129 | -3/Research | Destroyed Tracker 16194 | -3/Research | Spotted Combat Programmer 16215 | -3/Research | Destroyed Combat Programmer 16261 | -3/Research | Found Exp. Hacking Suite 16321 | -3/Research | Intercept squad dispatched 16336 | -3/Research | Spotted Tracker 16346 | -3/Research | Destroyed Tracker 16349 | -3/Research | Destroyed Tracker 16358 | -3/Research | Repaired Broken Reaction Control System? 16388 | -3/Research | Spotted Combat Programmer 16393 | -3/Research | Destroyed Combat Programmer 16396 | -3/Research | Spotted B-86 Titan 16428 | -3/Research | Destroyed B-86 Titan 16451 | -3/Research | Repaired Imp. Powered Armor 16530 | -3/Research | Intercept squad dispatched 16554 | -3/Research | Spotted Tracker 16554 | -3/Research | Spotted Tracker 16554 | -3/Research | Spotted Tracker 16555 | -3/Research | Core integrity fell below 50% 16560 | -3/Research | Emitted hypermatrix ping 16562 | -3/Research | Destroyed Tracker 16564 | -3/Research | Core integrity fell below 20% 16565 | -3/Research | Assembled emerged from beneath the floor 16574 | -3/Research | Destroyed Tracker 16584 | -3/Research | Spotted Combat Programmer 16589 | -3/Research | Spotted Combat Programmer 16612 | -3/Research | Destroyed Combat Programmer 16631 | -3/Research | Spotted Combat Programmer 16643 | -3/Research | System corruption reached 10% 16645 | -3/Research | Destroyed Combat Programmer 16654 | -3/Research | Destroyed Combat Programmer 16674 | -3/Research | First assault squad dispatched 16694 | -3/Research | Identified exit to Testing 16694 | -3/Research | Identified exit to Research 16711 | -3/Research | Assembled emerged from beneath the floor 16715 | -3/Research | Spotted B-86 Titan 16717 | -3/Research | Reached level 30 16740 | -3/Research | Destroyed B-86 Titan 16783 | -3/Research | Assembled emerged from beneath the floor 16794 | -3/Research | Assembled emerged from beneath the floor 16803 | -3/Research | Entered Testing 16803 | -3/Testing | Accompanied by 8 allies 16824 | -3/Testing | Found Prototype Slashing Weapon 16824 | -3/Testing | Identified Centrium Greatsword 16853 | -3/Testing | Discovered exit to Research (range 7) 16972 | -3/Testing | Build established: Wizard-Scout 17043 | -3/Testing | Repaired Diametric Drive 17063 | -3/Testing | Found Med. Regenerative Plating 17067 | -3/Testing | Protovariant out of control (PL-GAQO06OYK7) 17067 | -3/Testing | Unleashed a protovariant (PL-GAQO06OYK7) 17070 | -3/Testing | Intercept squad dispatched 17075 | -3/Testing | Spotted PL-GAQO06OYK7 17076 | -3/Testing | Spotted Tracker 17084 | -3/Testing | Destroyed Tracker 17102 | -3/Testing | Spotted Combat Programmer 17110 | -3/Testing | Destroyed Combat Programmer 17154 | -3/Testing | Scanned by Researcher 17242 | -3/Testing | Fabricated Exp. Q-thruster (x1) 17288 | -3/Testing | Fabricated Exp. Q-thruster? 17323 | -3/Testing | Spotted Striker 17323 | -3/Testing | Spotted Striker 17346 | -3/Testing | Found Prototype Slashing Weapon 17346 | -3/Testing | Identified Nanosword 17359 | -3/Testing | Intercept squad dispatched 17367 | -3/Testing | Spotted Tracker 17368 | -3/Testing | Spotted Tracker 17373 | -3/Testing | Destroyed Tracker 17378 | -3/Testing | Destroyed Tracker 17401 | -3/Testing | Spotted Combat Programmer 17401 | -3/Testing | Spotted Combat Programmer 17414 | -3/Testing | Destroyed Combat Programmer 17419 | -3/Testing | Destroyed Combat Programmer 17469 | -3/Testing | Found Hyp. EM Gauss Rifle 17479 | -3/Testing | Spotted Alpha 7 17494 | -3/Testing | Destroyed Striker 17503 | -3/Testing | Destroyed Striker 17517 | -3/Testing | Destroyed Alpha 7 17569 | -3/Testing | Stole the SGEMP Prototype 17599 | -3/Testing | Spotted Investigator 17630 | -3/Testing | Repaired Adv. Powered Armor 17664 | -3/Testing | Repaired Centrium Greatsword 17671 | -3/Testing | Reached level 31 17696 | -3/Testing | Intercept squad dispatched 17699 | -3/Testing | Spotted Tracker 17699 | -3/Testing | Spotted Tracker 17700 | -3/Testing | Spotted Tracker 17700 | -3/Testing | Spotted Tracker 17705 | -3/Testing | Destroyed Tracker 17707 | -3/Testing | Destroyed Tracker 17716 | -3/Testing | Spotted Combat Programmer 17718 | -3/Testing | Spotted Combat Programmer 17718 | -3/Testing | Spotted Combat Programmer 17719 | -3/Testing | Warped through subspace 17720 | -3/Testing | Emitted hypermatrix ping 17725 | -3/Testing | Assembled emerged from beneath the floor 17728 | -3/Testing | Found Molecular Scythe 17779 | -3/Testing | Spotted Combat Programmer 17787 | -3/Testing | Destroyed Combat Programmer 17798 | -3/Testing | Destroyed Combat Programmer 17869 | -3/Testing | Destroyed Investigator 17872 | -3/Testing | Found Prototype Launcher 17872 | -3/Testing | Identified Containment Facilitator 17960 | -3/Testing | Destroyed Tracker 17978 | -3/Testing | Destroyed Combat Programmer 17985 | -3/Testing | Destroyed Tracker 18109 | -3/Testing | Intercept squad dispatched 18110 | -3/Testing | Spotted Tracker 18110 | -3/Testing | Spotted Tracker 18111 | -3/Testing | Spotted Tracker 18112 | -3/Testing | Spotted Tracker 18112 | -3/Testing | Spotted Tracker 18122 | -3/Testing | Destroyed Tracker 18129 | -3/Testing | Repaired Adv. Powered Armor 18138 | -3/Testing | Destroyed Tracker 18138 | -3/Testing | Destroyed by Tracker with Linked Autogun Last Messages --------------- 18121_ PK:O6RZYJ7JD<:4%JS3HWSFSOBKDXK#PJ2 18122_ Tracker destroyed. 18122_ Molecular Scythe follow-up attack on S-43 Plague. 18125_ Vibroblade follow-up attack on Tracker. 18125_ Prototype Energy Gun severed. 18125_ S-43 Plague destroyed. 18127_ System corrupted: Nanosword targeting data glitched. 18129_ Repair station completes Adv. Powered Armor repairs. 18132_ K-01 Serf collects debris. 18132_ Vibroblade follow-up attack on Tracker. 18135_ K-01 Serf collects debris. 18136_ Critical hit. 18136_ Mic. Fission Core destroyed. 18138_ Protomatter-43 decays. 18138_ Destroyed Prototype Ballistic Gun. 18138_ Destroyed Unknown Device. 18138_ Centrium Greatsword follow-up attack on Tracker. 18138_ Destroyed Prototype Device. 18138_ Molecular Scythe follow-up attack on Tracker. 18138_ Tracker destroyed. Map ----- +----------------------------------------------------+ | ?????????????????????????????????????????????????? | | ?????????????????????????????????????????????????? | | ?????????????????????????????????????????????????? | | ?????????????????????????????????????????????????? | | ?????????????????????????????????????????????????? | | ?##########??????????????????????????????????????? | | ?# #?????#######??????????????????????????? | | ?# "" #?????# ?????????????????????????? | | ?# "" #?????# ???????###########???????? | | ?# "" """ #?????# ?###### """ """ #???????? | | ?# S/ """ #?????#] ?# # """ """ #???????? | | ?# "" """ #?????# #= % # """ """ #???????? | | ?# "" """ #?????# #!<[ # #???????? | | ?# "" """ #?????# !+*%= + #???????? | | ?# #?????# # % # #???????? | | ######+####################* #! #???????? | | [ # #???????? | | % ######+####???????? | | = #????# #??????????? | | uR%!R R R #????# #??????????? | | ##########T#############% #????# #??????????? | | ############?###########k #????# #??????????? | | # = #??# | #p #????# ############ | | # #??# sss#p #????# # | | # #??# """%#p #????# # ! "" | | # #??# = """@#p %#????# # """"" "" | | + ! #??# "!" """s#p% %###### # """"" T" | | # #??# "R" =ks /# """"" "" | | [# #### """ s*#k # """"" "" | | [[# =# ## s #*= %+ | | ##+######### ########### [ # """"" | | #???????### #!! %######## """"" | | #????????## ""!%#!! #??????# """"" | | ####?????????#"" """[#[!% #??????# """"" | | ##+#####????????#"" """%/[%= #??????# | | #????????#"T """!#![! #??????# | | = ""#????????#"" """ #[! #??????############ | | " """#????????#"" # ##############????? | | " R"#????????# # # = #????? | | " """#????????########### # """ #????? | | " ""#??????????????????# # """ "" "" #????? | | #??????????????????# + """ ""T"" #????? | | ########??????????????????# # """ ?????? | | ??????????????????????????# #############?????? | | ??????????????????######### # / #????????? | | ??????????????????######### # #????????? | | ??????????????????##!! !### # c #????????? | | #######??########?###"!"### = # #????????? | | * #??# #?##"*%T###!%/kc #????????? | | #### #?## !|####!* # #????????? | +----------------------------------------------------+ Best States ------------- Heat Dissipation 105 Coolant Potential 80 Energy Generation 54 Energy Capacity 1360 Matter Stores 300 Matter Capacity 300 Sight Range 23 Robot Scan Range 22 Terrain Scan Range 16 Terrain Scan Density 135 Cloak Strength 5 Armor Coverage 625 Resistance: KI 5 Resistance: TH 10 Resistance: EM 15 Propulsion Shielding 90 Utility Shielding 33 Melee Speed Boost 30 Phase Shifting 15 Evasion (%) 82 Melee Accuracy 12 Core Analysis 6 Energy Filtering 50 Offensive Hacking 72 Defensive Hacking 40 Item Schematics ----------------- Adv. Powered Armor | -3/Research | Scanalyzed Adv. Force Booster | -3/Research | Scanalyzed Nanoactuators | -3/Research | Scanalyzed Reaction Control System | -3/Research | Scanalyzed Adv. Terrain Scan Processor | -3/Research | Scanalyzed Exp. Q-thruster | -3/Research | Hacked Adv. Reaction Control System | -3/Testing | Hacked Vibroblade | -3/Testing | Scanalyzed Lgt. Regenerative Plating | -3/Testing | Hacked Med. Regenerative Plating | -3/Testing | Hacked Hvy. Regenerative Plating | -3/Testing | Hacked Enh. Quantum Rifle | -3/Testing | Hacked Quantum Reactor | -3/Testing | Hacked Impulse Thruster Array | -3/Testing | Hacked Exp. Force Field | -3/Testing | Hacked Centrium Greatsword | -3/Testing | Scanalyzed Adv. Shield Generator | -3/Testing | Scanalyzed Adv. Core Analyzer | -3/Testing | Hacked Vortex Chain Reactor | -3/Testing | Hacked Centrium Leg | -3/Testing | Hacked Robot Schematics ------------------ O-32 Director | -3/Research | Hacked B-74 Champion | -3/Testing | Hacked Fabricated ------------ O-24 Administrator | x1 | -7/Factory O-24 Administrator | x1 | -7/Factory Imp. Powered Armor | x1 | -7/Factory Imp. Hacking Suite | x1 | -7/Factory Quantum Rifle | x2 | -6/Factory | Preloaded Adv. Hacking Suite | x1 | -6/Factory Adv. System Shield | x1 | -6/Factory Imp. Powered Armor | x1 | -5/Factory Imp. Cesium-ion Thruster | x1 | -5/Factory Imp. Cesium-ion Thruster | x1 | -5/Factory Exp. Cesium-ion Thruster | x1 | -4/Factory Exp. Cesium-ion Thruster | x1 | -4/Factory Adv. Powered Armor | x1 | -4/Factory Vibroblade | x1 | -4/Armory Vibroblade | x1 | -4/Armory Exp. Cesium-ion Thruster | x1 | -4/Armory Vibroblade | x1 | -4/Armory Vibroblade | x1 | -4/Armory Exp. Cesium-ion Thruster | x1 | -4/Armory Adv. Actuator Array | x1 | -4/Armory Nanoactuators | x2 | -4/Armory Exp. Cesium-ion Thruster | x1 | -4/Armory Exp. System Shield | x1 | -4/Armory Exp. Q-thruster | x1 | -3/Testing Exp. Q-thruster | x1 | -3/Testing Alien Tech Used ----------------- Core Reset Matrix Integrated Dissipator Core Regenerator Transdimensional Reconstructor Achievements -------------- Anyone Home? Speed Demon Challenges ------------ None RPGLIKE | -11 -10 -10 -10 -9 -8 -8 -7 -7 -7 -7 -6 -6 -5 -5 -4 -4 -4 -4 -4 -3 -3 --------- Run | Scr Mat Min Exi Min Mat Gar Fac Gar Fac Gar Fac Gar Fac Gar Fac Gar Fac Arm Lab Res Tes Levels Raised 30 | . 1 1 . 2 4 3 2 2 . 1 2 1 1 1 3 1 . 1 1 2 1 XP Earned 48288 | 3000 2239 1042 350 3218 5671 4258 4014 2663 515 1404 2126 1668 2246 1421 3432 1312 491 2212 853 2596 1557 XP Spent 46405 | 2350 2120 1505 . 1525 7450 3655 3700 3170 . 1150 1800 2600 1700 . 2900 3200 1400 1700 1480 1500 1500 Upgrades 85 | 6 5 4 . 4 9 11 12 6 . 2 3 1 1 . 1 1 1 5 2 10 1 Power Slot 2 | . . . . . . 1 . . . . . . . . . . . 1 . . . Propulsion Slot 5 | 1 . . . 1 1 . . 1 . . . . 1 . . . . . . . . Utility Slot 10 | 1 2 1 . . 2 1 . . . . . 1 . . 1 1 . . . . . Weapon Slot 4 | 1 . . . . 1 . . 1 . . . . . . . . 1 . . . . Core Integrity 18 | . . 3 . . . 5 . . . . . . . . . . . . . 10 . Heat Dissipation 10 | . 2 . . . . 3 . 2 . . . . . . . . . 2 1 . . Energy Generation 2 | . . . . . 1 . . . . 1 . . . . . . . . . . . Energy Storage 1 | . . . . . . . . . . . 1 . . . . . . . . . . Mass Support 3 | 1 . . . 1 . . . . . . 1 . . . . . . . . . . Inventory Capacity 6 | 2 . . . . 1 . 1 . . . . . . . . . . . 1 . 1 Sight Range 1 | . 1 . . . . . . . . . . . . . . . . . . . . Sensor Range 11 | . . . . 2 . . 9 . . . . . . . . . . . . . . Ranged Accuracy 2 | . . . . . . . 1 . . . 1 . . . . . . . . . . Melee Accuracy 2 | . . . . . . . . . . . . . . . . . . 2 . . . Hack Attack % 3 | . . . . . 2 . . . . 1 . . . . . . . . . . . Hack Defense % 2 | . . . . . 1 . 1 . . . . . . . . . . . . . . KI Resistance % 1 | . . . . . . . . 1 . . . . . . . . . . . . . TH Resistance % 1 | . . . . . . 1 . . . . . . . . . . . . . . . TH Damage % 1 | . . . . . . . . 1 . . . . . . . . . . . . . Protomatter Created 7625 | . 182 10 . 219 345 482 114 270 281 499 490 395 235 451 453 536 396 779 . 621 867 Integrity Restored 19653 | . 510 69 . 754 520 1341 414 887 474 1260 818 801 564 1329 1324 1227 838 2375 . 1568 2580 Core 16222 | . 510 69 . 560 451 1341 290 602 342 933 624 801 564 1032 975 999 581 1718 . 1250 2580 Parts 3431 | . . . . 194 69 . 124 285 132 327 194 . . 297 349 228 257 657 . 318 . Protomatter Decayed 2633 | . 12 120 . 76 140 35 18 43 117 85 204 128 47 . 66 120 88 791 . 259 284 Game ------ Seed LightpackUltimateSegregator Manual? 0 Play Time 09:02:51 Cumulative 102.2 hours Start 2020.07.20 @ 17:03:32 End 2020.07.21 @ 15:39:29 Sessions 3 Manual Loads 0 Difficulty Rogue Special Mode Winter2019/RPGLIKE Game No. 43 Rogue 43 Adventurer 0 Explorer 0 Win Type - Total 1 Types 0/0/0/1/0/0/0 Lore% 65 Gallery% 56 Achievement% 56 Wizard Run 0 Options --------- ASCII 0 Keyboard 0 Movement Numpad Keybinds 0 Fullscreen 1 Font 14/SmallcapsGlow Map View 84x54 Tactical HUD 1 Map Filters NONE Filters NONE Steam 1 RUN: fc87d523-c591-416e-b259-349fbe7e3108